{"text_format":"1","workbook":"xlsx","n_sheets":4,"sheets":["STUDIUM","ws_pro","ws_rez","ryzyka"],"not_rendered":{"charts":0,"images":1,"macros":1,"external_links":0,"defined_names":0,"comments":1,"pivot_tables":0},"unopened":[],"bounds":{"document_bytes":16777216,"sheet_cells":100000,"rows_first":2000,"rows_last":500,"rows_between":2000,"halvings":0,"cell_chars":16384,"cell_head_chars":4096},"cells_cut":0,"cells_raw":0,"read":"whole","date_system":"1900"}

{"sheet":"STUDIUM","index":0,"n_rows":389,"n_cols":21,"rows_kept":389,"cut":false,"hidden":false,"merged":[[258,0,258,1],[259,0,259,1],[260,0,260,1],[261,0,261,1],[262,0,262,1],[263,0,263,1],[264,0,264,1],[265,0,265,1],[266,0,266,1],[249,0,249,1],[250,0,250,1],[251,0,251,1],[252,0,252,1],[253,0,253,1],[254,0,254,1],[255,0,255,1],[256,0,256,1],[257,0,257,1],[240,0,240,1],[241,0,241,1],[242,0,242,1],[243,0,243,1],[244,0,244,1],[245,0,245,1],[246,0,246,1],[247,0,247,1],[248,0,248,1],[387,1,387,4],[387,5,387,6],[387,7,387,8],[387,9,387,10],[387,11,387,12],[388,0,388,13],[198,0,199,0],[223,0,223,1],[224,0,224,1],[225,0,225,1],[226,0,226,1],[227,0,227,1],[228,0,228,1],[229,0,229,1],[230,0,230,1],[231,0,231,1],[232,0,232,1],[233,0,233,1],[234,0,234,1],[235,0,235,1],[236,0,236,1],[237,0,237,1],[238,0,238,1],[239,0,239,1],[385,1,385,4],[385,5,385,6],[385,7,385,8],[385,9,385,10],[385,11,385,12],[386,1,386,4],[386,5,386,6],[386,7,386,8],[386,9,386,10],[386,11,386,12],[383,1,383,4],[383,5,383,6],[383,7,383,8],[383,9,383,10],[383,11,383,12],[384,1,384,4],[384,5,384,6],[384,7,384,8],[384,9,384,10],[384,11,384,12],[380,7,380,8],[380,9,380,10],[380,11,380,12],[381,1,381,4],[381,5,381,6],[381,7,381,8],[381,9,381,10],[381,11,381,12],[382,1,382,4],[382,5,382,6],[382,7,382,8],[382,9,382,10],[382,11,382,12],[378,1,378,4],[378,5,378,6],[378,7,378,8],[378,9,378,10],[378,11,378,12],[379,1,379,4],[379,5,379,6],[379,7,379,8],[379,9,379,10],[379,11,379,12],[376,1,376,4],[376,5,376,6],[376,7,376,8],[376,9,376,10],[376,11,376,12],[377,1,377,4],[377,5,377,6],[377,7,377,8],[377,9,377,10],[377,11,377,12],[380,1,380,4],[380,5,380,6],[374,1,374,4],[374,5,374,6],[374,7,374,8],[374,9,374,10],[374,11,374,12],[375,1,375,4],[375,5,375,6],[375,7,375,8],[375,9,375,10],[375,11,375,12],[372,1,372,4],[372,5,372,6],[372,7,372,8],[372,9,372,10],[372,11,372,12],[373,1,373,4],[373,5,373,6],[373,7,373,8],[373,9,373,10],[373,11,373,12],[369,7,369,8],[369,9,369,10],[369,11,369,12],[370,1,370,4],[370,5,370,6],[370,7,370,8],[370,9,370,10],[370,11,370,12],[371,1,371,4],[371,5,371,6],[371,7,371,8],[371,9,371,10],[371,11,371,12],[367,1,367,4],[367,5,367,6],[367,7,367,8],[367,9,367,10],[367,11,367,12],[368,1,368,4],[368,5,368,6],[368,7,368,8],[368,9,368,10],[368,11,368,12],[369,1,369,4],[369,5,369,6],[365,1,365,4],[365,5,365,6],[365,7,365,8],[365,9,365,10],[365,11,365,12],[366,1,366,4],[366,5,366,6],[366,7,366,8],[366,9,366,10],[366,11,366,12],[362,11,362,12],[363,1,363,4],[363,5,363,6],[363,7,363,8],[363,9,363,10],[363,11,363,12],[364,1,364,4],[364,5,364,6],[364,7,364,8],[364,9,364,10],[364,11,364,12],[362,1,362,4],[362,5,362,6],[362,7,362,8],[362,9,362,10],[360,1,360,4],[360,5,360,6],[360,7,360,8],[360,9,360,10],[360,11,360,12],[361,1,361,4],[361,5,361,6],[361,7,361,8],[361,9,361,10],[361,11,361,12],[358,1,358,4],[358,5,358,6],[358,7,358,8],[358,9,358,10],[358,11,358,12],[359,1,359,4],[359,5,359,6],[359,7,359,8],[359,9,359,10],[359,11,359,12],[356,1,356,4],[356,5,356,6],[356,7,356,8],[356,9,356,10],[356,11,356,12],[357,1,357,4],[357,5,357,6],[357,7,357,8],[357,9,357,10],[357,11,357,12],[353,7,353,8],[353,9,353,10],[353,11,353,12],[354,1,354,4],[354,5,354,6],[354,7,354,8],[354,9,354,10],[354,11,354,12],[355,1,355,4],[355,5,355,6],[355,7,355,8],[355,9,355,10],[355,11,355,12],[353,1,353,4],[353,5,353,6],[351,1,351,4],[351,5,351,6],[351,7,351,8],[351,9,351,10],[351,11,351,12],[352,1,352,4],[352,5,352,6],[352,7,352,8],[352,9,352,10],[352,11,352,12],[349,1,349,4],[349,5,349,6],[349,7,349,8],[349,9,349,10],[349,11,349,12],[350,1,350,4],[350,5,350,6],[350,7,350,8],[350,9,350,10],[350,11,350,12],[347,1,347,4],[347,5,347,6],[347,7,347,8],[347,9,347,10],[347,11,347,12],[348,1,348,4],[348,5,348,6],[348,7,348,8],[348,9,348,10],[348,11,348,12],[345,1,345,4],[345,5,345,6],[345,7,345,8],[345,9,345,10],[345,11,345,12],[346,1,346,4],[346,5,346,6],[346,7,346,8],[346,9,346,10],[346,11,346,12],[343,5,343,6],[343,7,343,8],[343,9,343,10],[343,11,343,12],[344,1,344,4],[344,5,344,6],[344,7,344,8],[344,9,344,10],[344,11,344,12],[341,1,341,4],[341,5,341,6],[341,7,341,8],[341,9,341,10],[341,11,341,12],[342,1,342,4],[342,5,342,6],[342,7,342,8],[342,9,342,10],[342,11,342,12],[343,1,343,4],[339,1,339,4],[339,5,339,6],[339,7,339,8],[339,9,339,10],[339,11,339,12],[340,1,340,4],[340,5,340,6],[340,7,340,8],[340,9,340,10],[340,11,340,12],[337,11,337,12],[338,11,338,12],[337,9,337,10],[338,9,338,10],[337,7,337,8],[338,7,338,8],[337,1,337,4],[337,5,337,6],[338,1,338,4],[338,5,338,6],[334,1,334,2],[334,3,334,4],[334,5,334,7],[334,8,334,9],[334,10,334,12],[335,0,335,12],[336,10,336,12],[336,3,336,9],[332,3,332,4],[332,5,332,7],[332,8,332,9],[332,10,332,12],[333,1,333,2],[333,3,333,4],[333,5,333,7],[333,8,333,9],[333,10,333,12],[336,0,336,2],[332,1,332,2],[326,3,326,4],[326,7,326,12],[327,3,327,4],[327,7,327,12],[328,3,328,4],[328,7,328,12],[330,10,330,12],[330,8,330,9],[330,5,330,7],[330,3,330,4],[321,0,321,12],[322,0,322,12],[323,9,323,12],[323,3,323,8],[324,3,324,4],[324,8,324,12],[325,3,325,4],[325,7,325,12],[327,5,327,6],[328,0,328,2],[328,5,328,6],[329,0,329,12],[330,1,330,2],[326,0,326,2],[326,5,326,6],[327,0,327,2],[331,10,331,12],[331,8,331,9],[331,5,331,7],[331,3,331,4],[331,1,331,2],[277,0,277,12],[307,0,307,3],[308,0,308,3],[309,0,309,3],[310,0,310,3],[311,0,311,3],[306,0,306,3],[315,4,315,5],[316,4,316,5],[315,9,315,12],[316,9,316,12],[314,0,314,3],[315,0,315,3],[316,0,316,3],[313,9,313,12],[314,9,314,12],[313,0,313,5],[309,4,309,12],[310,4,310,12],[317,4,317,5],[318,4,318,5],[319,4,319,5],[320,4,320,5],[317,9,317,12],[318,9,318,12],[319,9,319,12],[320,9,320,12],[274,9,274,12],[274,5,274,8],[275,0,275,12],[276,0,276,12],[269,7,269,8],[269,9,269,10],[269,11,269,12],[270,7,270,8],[270,9,270,10],[270,11,270,12],[271,7,271,8],[271,9,271,10],[271,11,271,12],[266,7,266,8],[266,9,266,10],[266,11,266,12],[267,7,267,8],[267,9,267,10],[267,11,267,12],[268,7,268,8],[268,9,268,10],[268,11,268,12],[273,0,273,12],[274,0,274,4],[266,2,266,6],[267,0,267,1],[268,0,268,1],[269,0,269,1],[270,0,270,1],[271,0,271,1],[272,0,272,1],[264,7,264,8],[264,9,264,10],[264,11,264,12],[265,7,265,8],[265,9,265,10],[265,11,265,12],[260,7,260,8],[260,9,260,10],[260,11,260,12],[261,7,261,8],[261,9,261,10],[261,11,261,12],[262,7,262,8],[262,9,262,10],[262,11,262,12],[272,7,272,8],[272,9,272,10],[272,11,272,12],[258,7,258,8],[258,9,258,10],[258,11,258,12],[259,7,259,8],[259,9,259,10],[259,11,259,12],[254,7,254,8],[254,9,254,10],[254,11,254,12],[255,7,255,8],[255,9,255,10],[255,11,255,12],[256,7,256,8],[256,9,256,10],[256,11,256,12],[263,7,263,8],[263,9,263,10],[263,11,263,12],[252,7,252,8],[252,9,252,10],[252,11,252,12],[253,7,253,8],[253,9,253,10],[253,11,253,12],[248,7,248,8],[248,9,248,10],[248,11,248,12],[249,7,249,8],[249,9,249,10],[249,11,249,12],[250,7,250,8],[250,9,250,10],[250,11,250,12],[257,7,257,8],[257,9,257,10],[257,11,257,12],[246,7,246,8],[246,9,246,10],[246,11,246,12],[247,7,247,8],[247,9,247,10],[247,11,247,12],[242,7,242,8],[242,9,242,10],[242,11,242,12],[243,7,243,8],[243,9,243,10],[243,11,243,12],[244,7,244,8],[244,9,244,10],[244,11,244,12],[251,7,251,8],[251,9,251,10],[251,11,251,12],[240,7,240,8],[240,9,240,10],[240,11,240,12],[241,7,241,8],[241,9,241,10],[241,11,241,12],[236,7,236,8],[236,9,236,10],[236,11,236,12],[237,7,237,8],[237,9,237,10],[237,11,237,12],[238,7,238,8],[238,9,238,10],[238,11,238,12],[245,7,245,8],[245,9,245,10],[245,11,245,12],[234,7,234,8],[234,9,234,10],[234,11,234,12],[235,7,235,8],[235,9,235,10],[235,11,235,12],[230,7,230,8],[230,9,230,10],[230,11,230,12],[231,7,231,8],[231,9,231,10],[231,11,231,12],[232,7,232,8],[232,9,232,10],[232,11,232,12],[239,7,239,8],[239,9,239,10],[239,11,239,12],[132,1,132,2],[132,3,132,4],[132,5,132,6],[132,7,132,8],[132,9,132,10],[132,11,132,12],[144,1,144,7],[145,1,145,7],[146,1,146,7],[130,1,130,2],[130,3,130,4],[130,5,130,6],[130,7,130,8],[130,9,130,10],[130,11,130,12],[131,1,131,2],[131,3,131,4],[131,5,131,6],[131,7,131,8],[131,9,131,10],[131,11,131,12],[143,8,143,12],[144,8,144,12],[145,8,145,12],[139,0,139,12],[140,0,140,12],[141,6,141,8],[141,10,141,12],[142,8,142,12],[141,0,141,5],[128,1,128,2],[128,3,128,4],[128,5,128,6],[128,7,128,8],[128,9,128,10],[128,11,128,12],[129,1,129,2],[129,3,129,4],[129,5,129,6],[129,7,129,8],[129,9,129,10],[129,11,129,12],[126,1,126,2],[126,3,126,4],[126,5,126,6],[126,7,126,8],[126,9,126,10],[126,11,126,12],[127,1,127,2],[127,3,127,4],[127,5,127,6],[127,7,127,8],[127,9,127,10],[127,11,127,12],[124,1,124,2],[124,3,124,4],[124,5,124,6],[124,7,124,8],[124,9,124,10],[124,11,124,12],[125,1,125,2],[125,3,125,4],[125,5,125,6],[125,7,125,8],[125,9,125,10],[125,11,125,12],[122,1,122,2],[122,3,122,4],[122,5,122,6],[122,7,122,8],[122,9,122,10],[122,11,122,12],[123,1,123,2],[123,3,123,4],[123,5,123,6],[123,7,123,8],[123,9,123,10],[123,11,123,12],[120,1,120,2],[120,3,120,4],[120,5,120,6],[120,7,120,8],[120,9,120,10],[120,11,120,12],[121,1,121,2],[121,3,121,4],[121,5,121,6],[121,7,121,8],[121,9,121,10],[121,11,121,12],[118,1,118,2],[118,3,118,4],[118,5,118,6],[118,7,118,8],[118,9,118,10],[118,11,118,12],[119,1,119,2],[119,3,119,4],[119,5,119,6],[119,7,119,8],[119,9,119,10],[119,11,119,12],[116,1,116,2],[116,3,116,4],[116,5,116,6],[116,7,116,8],[116,9,116,10],[116,11,116,12],[117,1,117,2],[117,3,117,4],[117,5,117,6],[117,7,117,8],[117,9,117,10],[117,11,117,12],[114,1,114,2],[114,3,114,4],[114,5,114,6],[114,7,114,8],[114,9,114,10],[114,11,114,12],[115,1,115,2],[115,3,115,4],[115,5,115,6],[115,7,115,8],[115,9,115,10],[115,11,115,12],[112,1,112,2],[112,3,112,4],[112,5,112,6],[112,7,112,8],[112,9,112,10],[112,11,112,12],[113,1,113,2],[113,3,113,4],[113,5,113,6],[113,7,113,8],[113,9,113,10],[113,11,113,12],[110,1,110,2],[110,3,110,4],[110,5,110,6],[110,7,110,8],[110,9,110,10],[110,11,110,12],[111,1,111,2],[111,3,111,4],[111,5,111,6],[111,7,111,8],[111,9,111,10],[111,11,111,12],[108,1,108,2],[108,3,108,4],[108,5,108,6],[108,7,108,8],[108,9,108,10],[108,11,108,12],[109,1,109,2],[109,3,109,4],[109,5,109,6],[109,7,109,8],[109,9,109,10],[109,11,109,12],[106,1,106,2],[106,3,106,4],[106,5,106,6],[106,7,106,8],[106,9,106,10],[106,11,106,12],[107,1,107,2],[107,3,107,4],[107,5,107,6],[107,7,107,8],[107,9,107,10],[107,11,107,12],[104,1,104,2],[104,3,104,4],[104,5,104,6],[104,7,104,8],[104,9,104,10],[104,11,104,12],[105,1,105,2],[105,3,105,4],[105,5,105,6],[105,7,105,8],[105,9,105,10],[105,11,105,12],[102,1,102,2],[102,3,102,4],[102,5,102,6],[102,7,102,8],[102,9,102,10],[102,11,102,12],[103,1,103,2],[103,3,103,4],[103,5,103,6],[103,7,103,8],[103,9,103,10],[103,11,103,12],[100,1,100,2],[100,3,100,4],[100,5,100,6],[100,7,100,8],[100,9,100,10],[100,11,100,12],[101,1,101,2],[101,3,101,4],[101,5,101,6],[101,7,101,8],[101,9,101,10],[101,11,101,12],[98,1,98,2],[98,3,98,4],[98,5,98,6],[98,7,98,8],[98,9,98,10],[98,11,98,12],[99,1,99,2],[99,3,99,4],[99,5,99,6],[99,7,99,8],[99,9,99,10],[99,11,99,12],[96,1,96,2],[96,3,96,4],[96,5,96,6],[96,7,96,8],[96,9,96,10],[96,11,96,12],[97,1,97,2],[97,3,97,4],[97,5,97,6],[97,7,97,8],[97,9,97,10],[97,11,97,12],[93,11,93,12],[94,1,94,2],[94,3,94,4],[94,5,94,6],[94,7,94,8],[94,9,94,10],[94,11,94,12],[95,1,95,2],[95,3,95,4],[95,5,95,6],[95,7,95,8],[95,9,95,10],[95,11,95,12],[93,3,93,4],[93,5,93,6],[93,7,93,8],[93,9,93,10],[91,9,91,10],[91,11,91,12],[92,1,92,2],[92,3,92,4],[92,5,92,6],[92,7,92,8],[92,9,92,10],[92,11,92,12],[87,11,87,12],[88,1,88,2],[88,3,88,4],[88,5,88,6],[88,7,88,8],[88,9,88,10],[88,11,88,12],[89,1,89,2],[89,3,89,4],[89,5,89,6],[89,7,89,8],[89,9,89,10],[89,11,89,12],[85,9,85,10],[85,11,85,12],[86,1,86,2],[86,3,86,4],[86,5,86,6],[86,7,86,8],[86,9,86,10],[86,11,86,12],[138,0,138,5],[142,1,142,7],[143,1,143,7],[84,1,84,2],[84,3,84,4],[84,5,84,6],[84,7,84,8],[84,9,84,10],[87,1,87,2],[87,3,87,4],[87,5,87,6],[87,7,87,8],[87,9,87,10],[90,1,90,2],[90,3,90,4],[90,5,90,6],[90,7,90,8],[90,9,90,10],[93,1,93,2],[90,11,90,12],[91,1,91,2],[91,3,91,4],[91,5,91,6],[91,7,91,8],[83,7,83,8],[83,9,83,10],[83,11,83,12],[205,11,205,12],[198,1,198,12],[199,1,199,12],[200,1,200,12],[201,1,201,12],[202,1,202,12],[59,11,59,12],[60,9,61,12],[63,0,63,5],[65,5,65,12],[66,5,66,12],[67,5,67,12],[64,5,64,12],[71,9,71,12],[68,9,68,12],[63,9,63,12],[62,11,62,12],[59,0,59,10],[60,0,60,8],[61,0,61,8],[74,0,74,10],[75,0,75,8],[76,0,76,8],[77,0,77,10],[84,11,84,12],[85,1,85,2],[85,3,85,4],[85,5,85,6],[85,7,85,8],[48,5,48,6],[48,7,48,8],[48,9,48,10],[48,11,48,12],[49,1,49,4],[49,5,49,6],[49,7,49,8],[49,9,49,10],[49,11,49,12],[48,1,48,4],[56,1,56,4],[56,5,56,6],[56,7,56,8],[56,9,56,10],[56,11,56,12],[57,1,57,4],[57,5,57,6],[57,7,57,8],[57,9,57,10],[57,11,57,12],[54,1,54,4],[54,5,54,6],[54,7,54,8],[54,9,54,10],[54,11,54,12],[55,1,55,4],[55,5,55,6],[55,7,55,8],[55,9,55,10],[55,11,55,12],[46,5,46,6],[46,7,46,8],[46,9,46,10],[46,11,46,12],[47,1,47,4],[47,5,47,6],[47,7,47,8],[47,9,47,10],[47,11,47,12],[44,5,44,6],[44,7,44,8],[44,9,44,10],[44,11,44,12],[45,1,45,4],[45,5,45,6],[45,7,45,8],[45,9,45,10],[45,11,45,12],[44,1,44,4],[46,1,46,4],[42,5,42,6],[42,7,42,8],[42,9,42,10],[42,11,42,12],[43,1,43,4],[43,5,43,6],[43,7,43,8],[43,9,43,10],[43,11,43,12],[40,5,40,6],[40,7,40,8],[40,9,40,10],[40,11,40,12],[41,1,41,4],[41,5,41,6],[41,7,41,8],[41,9,41,10],[41,11,41,12],[40,1,40,4],[42,1,42,4],[38,5,38,6],[38,7,38,8],[38,9,38,10],[38,11,38,12],[39,1,39,4],[39,5,39,6],[39,7,39,8],[39,9,39,10],[39,11,39,12],[36,5,36,6],[36,7,36,8],[36,9,36,10],[36,11,36,12],[37,1,37,4],[37,5,37,6],[37,7,37,8],[37,9,37,10],[37,11,37,12],[36,1,36,4],[38,1,38,4],[34,5,34,6],[34,7,34,8],[34,9,34,10],[34,11,34,12],[35,1,35,4],[35,5,35,6],[35,7,35,8],[35,9,35,10],[35,11,35,12],[32,5,32,6],[32,7,32,8],[32,9,32,10],[32,11,32,12],[33,1,33,4],[33,5,33,6],[33,7,33,8],[33,9,33,10],[33,11,33,12],[32,1,32,4],[34,1,34,4],[30,5,30,6],[30,7,30,8],[30,9,30,10],[30,11,30,12],[31,1,31,4],[31,5,31,6],[31,7,31,8],[31,9,31,10],[31,11,31,12],[28,5,28,6],[28,7,28,8],[28,9,28,10],[28,11,28,12],[29,1,29,4],[29,5,29,6],[29,7,29,8],[29,9,29,10],[29,11,29,12],[28,1,28,4],[30,1,30,4],[26,5,26,6],[26,7,26,8],[26,9,26,10],[26,11,26,12],[27,1,27,4],[27,5,27,6],[27,7,27,8],[27,9,27,10],[27,11,27,12],[24,5,24,6],[24,7,24,8],[24,9,24,10],[24,11,24,12],[25,1,25,4],[25,5,25,6],[25,7,25,8],[25,9,25,10]],"merged_total":1421,"flags":["merged_cut"]}
["rozdział : 1 Definicja celów projektu",null,null,null,null,null,null,null,null,null,null,null,null,null,null,null,null,null,null,null,1]
["sekcja : 1.1 Analiza interesariuszy",null,null,null,null,null,null,null,null,null,null,null,null,null,null,null,null,null,null,null,1]
["tabela : 1.1.1 Inicjatorzy zmian",null,null,null,null,null,null,null,null,null,null,null,null,null,null,null,null,null,null,null,1]
["Proszę opisać inicjatora zmian",null,null,null,null,null,null,null,null,null,null,null,null,null,null,null,null,null,null,null,1]
[null,null,null,null,null,null,null,null,null,"• Kto był inicjatorem zmian?\n• Dlaczego inicjatorowi zależy na zmianach?\n• W jaki sposób zmiany go dotyczą?\n• W jaki sposób projektodawca dowiedział się o inicjatywie zmian?",null,null,null,{"$f":"IF(AND(A5>U5),\"+\",\"<-\")","v":"<-"},{"$f":"LEN(A5)","v":0},null,null,null,null,null,1]
["tabela : 1.1.2 Wybór grup interesariuszy",null,null,null,null,null,null,null,null,null,null,null,null,null,null,null,null,null,null,null,1]
["Proszę opisać sposób wyboru grup interesariuszy oraz podział interesariuszy na 1) interesariuszy głównych; 2) interesariuszy drugorzędnych; 3) interesariuszy kontekstowych",null,null,null,null,null,null,null,null,null,null,null,null,null,null,null,null,null,null,null,1]
[null,null,null,null,null,null,null,null,null,"• Czy opisano sposób wyboru grup interesariuszy projektu oraz scharakteryzowano wybrane do analizy grupy interesariuszy?\n• Czy wybrano wszystkie kluczowe dla realizacji projektu grupy interesariuszy?\n• Czy opisano stosunek wszystkich grup interesariuszy do realizacji działań w projekcie oraz ewentualnie działania mające na celu zmianę negatywnego nastawienia niektórych grup do projektu?\n• Czy wszystkie grupy interesariuszy są przychylne realizacji projektu i/lub projektodawca zapewnił działania mające na celu zmianę negatywnego nastawienia niektórych grup do projektu?",null,null,null,{"$f":"IF(AND(A8>U8),\"+\",\"<-\")","v":"<-"},{"$f":"LEN(A8)","v":0},null,null,null,null,null,1]
[null,null,null,null,null,null,null,null,null,null,null,null,null,null,null,null,null,null,null,null,1]
["LP.","Nazwa grupy interesariuszy\n",null,null,null,"Charakterystyka interesariuszy z punktu widzen istotnych w projekcie (społeczna, ekonomiczna, struktura, organizacja, status, zwyczaje)",null,"Interesy i oczekiwania (interesy, oczekiwania, charakter wpływu na projekt)",null,"Mocne i słabe strony (dostępne zasoby i środki, wiedza i doświadczenie, potencjalny wkład do projektu) ",null,"Implikacje i wnioski dla projektu (wymagane działania wspierające, strategia wobec interesariuszy przeciwnych realizacji projektu) ",null,null,null,null,null,null,null,null,1]
[1,null,null,null,null,null,null,null,null,null,null,null,null,{"$f":"IF(AND(B11>U11,F11>U11,H11>U11,J11>U11,L11>U11),\"+\",\"<-\")","v":"<-"},{"$f":"LEN(B11)","v":0},{"$f":"LEN(F11)","v":0},{"$f":"LEN(H11)","v":0},{"$f":"LEN(J11)","v":0},{"$f":"LEN(L11)","v":0},null,1]
[2,null,null,null,null,null,null,null,null,null,null,null,null,{"$f":"IF(AND(B12>U12,F12>U12,H12>U12,J12>U12,L12>U12),\"+\",\"<-\")","v":"<-"},{"$f":"LEN(B12)","v":0},{"$f":"LEN(F12)","v":0},{"$f":"LEN(H12)","v":0},{"$f":"LEN(J12)","v":0},{"$f":"LEN(L12)","v":0},null,1]
[3,null,null,null,null,null,null,null,null,null,null,null,null,"<-",0,0,0,0,0,null,1]
[4,null,null,null,null,null,null,null,null,null,null,null,null,"<-",0,0,0,0,0,null,1]
[5,null,null,null,null,null,null,null,null,null,null,null,null,"<-",0,0,0,0,0,null,1]
[6,null,null,null,null,null,null,null,null,null,null,null,null,"<-",0,0,0,0,0,null,1]
[7,null,null,null,null,null,null,null,null,null,null,null,null,"<-",0,0,0,0,0,null,1]
[8,null,null,null,null,null,null,null,null,null,null,null,null,"<-",0,0,0,0,0,null,1]
[9,null,null,null,null,null,null,null,null,null,null,null,null,"<-",0,0,0,0,0,null,1]
[10,null,null,null,null,null,null,null,null,null,null,null,null,"<-",0,0,0,0,0,null,1]
[11,null,null,null,null,null,null,null,null,null,null,null,null,"<-",0,0,0,0,0,null,1]
[12,null,null,null,null,null,null,null,null,null,null,null,null,"<-",0,0,0,0,0,null,1]
[13,null,null,null,null,null,null,null,null,null,null,null,null,"<-",0,0,0,0,0,null,1]
[14,null,null,null,null,null,null,null,null,null,null,null,null,"<-",0,0,0,0,0,null,1]
[15,null,null,null,null,null,null,null,null,null,null,null,null,"<-",0,0,0,0,0,null,1]
[16,null,null,null,null,null,null,null,null,null,null,null,null,"<-",0,0,0,0,0,null,1]
[17,null,null,null,null,null,null,null,null,null,null,null,null,"<-",0,0,0,0,0,null,1]
[18,null,null,null,null,null,null,null,null,null,null,null,null,"<-",0,0,0,0,0,null,1]
[19,null,null,null,null,null,null,null,null,null,null,null,null,"<-",0,0,0,0,0,null,1]
[20,null,null,null,null,null,null,null,null,null,null,null,null,"<-",0,0,0,0,0,null,1]
[21,null,null,null,null,null,null,null,null,null,null,null,null,"<-",0,0,0,0,0,null,1]
[22,null,null,null,null,null,null,null,null,null,null,null,null,"<-",0,0,0,0,0,null,1]
[23,null,null,null,null,null,null,null,null,null,null,null,null,"<-",0,0,0,0,0,null,1]
[24,null,null,null,null,null,null,null,null,null,null,null,null,"<-",0,0,0,0,0,null,1]
[25,null,null,null,null,null,null,null,null,null,null,null,null,"<-",0,0,0,0,0,null,1]
[26,null,null,null,null,null,null,null,null,null,null,null,null,"<-",0,0,0,0,0,null,1]
[27,null,null,null,null,null,null,null,null,null,null,null,null,"<-",0,0,0,0,0,null,1]
[28,null,null,null,null,null,null,null,null,null,null,null,null,"<-",0,0,0,0,0,null,1]
[29,null,null,null,null,null,null,null,null,null,null,null,null,"<-",0,0,0,0,0,null,1]
[30,null,null,null,null,null,null,null,null,null,null,null,null,"<-",0,0,0,0,0,null,1]
[31,null,null,null,null,null,null,null,null,null,null,null,null,"<-",0,0,0,0,0,null,1]
[32,null,null,null,null,null,null,null,null,null,null,null,null,"<-",0,0,0,0,0,null,1]
[33,null,null,null,null,null,null,null,null,null,null,null,null,"<-",0,0,0,0,0,null,1]
[34,null,null,null,null,null,null,null,null,null,null,null,null,"<-",0,0,0,0,0,null,1]
[35,null,null,null,null,null,null,null,null,null,null,null,null,"<-",0,0,0,0,0,null,1]
[36,null,null,null,null,null,null,null,null,null,null,null,null,"<-",0,0,0,0,0,null,1]
[37,null,null,null,null,null,null,null,null,null,null,null,null,"<-",0,0,0,0,0,null,1]
[38,null,null,null,null,null,null,null,null,null,null,null,null,"<-",0,0,0,0,0,null,1]
[39,null,null,null,null,null,null,null,null,null,null,null,null,"<-",0,0,0,0,0,null,1]
[40,null,null,null,null,null,null,null,null,null,null,null,null,"<-",0,0,0,0,0,null,1]
[41,null,null,null,null,null,null,null,null,null,null,null,null,"<-",0,0,0,0,0,null,1]
[42,null,null,null,null,null,null,null,null,null,null,null,null,"<-",0,0,0,0,0,null,1]
[43,null,null,null,null,null,null,null,null,null,null,null,null,"<-",0,0,0,0,0,null,1]
[44,null,null,null,null,null,null,null,null,null,null,null,null,"<-",0,0,0,0,0,null,1]
[45,null,null,null,null,null,null,null,null,null,null,null,null,"<-",0,0,0,0,0,null,1]
[46,null,null,null,null,null,null,null,null,null,null,null,null,"<-",0,0,0,0,0,null,1]
[47,null,null,null,null,null,null,null,null,null,null,null,null,"<-",0,0,0,0,0,null,1]
[48,null,null,null,null,null,null,null,null,null,null,null,null,"<-",0,0,0,0,0,null,1]
["                                                                                                                                W celu odkrycia kolejnego wiersza ustaw kursor na ostatni wiersz tabeli i naciśnij przycik",null,null,null,null,null,null,null,null,null,null,null,null,null,null,null,null,null,null,null,1]
["tabela : 1.1.3 Określenie potrzeb grup interesariuszy",null,null,null,null,null,null,null,null,null,null,null,null,null,null,null,null,null,null,null,1]
["Proszę opisać potrzeby poszczególnych grup interesariuszy",null,null,null,null,null,null,null,null,"• Czy opisano najważniejsze potrzeby interesariuszy w kontekście realizacji projektu?\n• Jakie są potrzeby poszczególnych grup interesariuszy w zakresie objętym projektem?\n• Czy można skwantyfikować powyższe potrzeby? Jeśli tak, to jak przedstawiają się one na dzień / miesiąc / rok?",null,null,null,null,null,null,null,null,null,null,1]
[null,null,null,null,null,null,null,null,null,null,null,null,null,{"$f":"IF(AND(O62>U62),\"+\",\"<-\")","v":"<-"},{"$f":"LEN(A62)","v":0},null,null,null,null,null,1]
["sekcja : 1.2 Analiza sytuacji problemowej",null,null,null,null,null,null,null,null,null,null,null,null,null,null,null,null,null,null,null,1]
[null,null,null,null,null,null,"tabela : 1.2.1 Poziom zaspokojenia potrzeb grup interesariuszy",null,null,"• Jaki jest obecny stopień zaspokajania potrzeb każdej z kluczowych grup interesariuszy? Które potrzeby są, a które nie są zaspokajane i dlaczego?\n• W jaki sposób potrzeby są teraz zaspokajane? Czy opisane zostały istniejące obiekty, maszyny, urządzenia, usługi, produkty itp.? Jakie są podstawowe obiekty, maszyny, urządzenia, usługi, produkty itp. związane z przedmiotem projektu?\n• Czy w opisie znajdują się podstawowe rozwiązania oraz parametry techniczne i technologiczne istniejących rozwiązań? Jakie są parametry techniczne, cechy fizyczne, stan techniczny infrastruktury i wyposażenia projektodawcy i operatora oraz ewentualnie powiązanych instytucji, otoczenie infrastruktury, funkcje obiektu, liczba użytkowników korzystających itd.?\n• Czy obecna infrastruktura jest funkcjonalna dla interesariuszy? Czy faktycznie istniejąca funkcjonalność infrastruktury może powodować niedogodności dla interesariuszy? Jaka jest jakość użytkowania: dostępność (zarówno odległość fizyczna w skali lokalnej / regionalnej / krajowej, jak i godziny otwarcia, czas oczekiwania, a także dostępność cenowa itp.), łatwość obsługi i satysfakcja z użytkowania? Czy wynika to z dotychczasowych rozwiązań / technologii? Czy wynika to z przepustowości infrastruktury i możliwości obsłużenia ograniczonej liczby interesariuszy?",null,null,null,null,null,null,null,null,null,null,1]
["Wyszczególnienie",null,null,null,null,"Opis",null,null,null,null,null,null,null,null,null,null,null,null,null,null,1]
["Proszę opisać, w jakim stopniu potrzeby są zaspokajane",null,null,null,null,null,null,null,null,null,null,null,null,{"$f":"IF(AND(O66>U66),\"+\",\"<-\")","v":"<-"},{"$f":"LEN(F66)","v":0},null,null,null,null,null,1]
["Proszę opisać sposób zaspokajania istniejących potrzeb",null,null,null,null,null,null,null,null,null,null,null,null,{"$f":"IF(AND(O67>U67),\"+\",\"<-\")","v":"<-"},{"$f":"LEN(F67)","v":0},null,null,null,null,null,1]
["Proszę opisać niedogodności dla interesariuszy",null,null,null,null,null,null,null,null,null,null,null,null,"<-",0,null,null,null,null,null,1]
["tabela : 1.2.2 Problemy grup interesariuszy",null,null,null,null,null,null,null,null,"• Jakie problemy odczuwają różni interesariusze? Jakie są źródła tej analizy?",null,null,null,null,null,null,null,null,null,null,1]
["Proszę opisać problemy grup interesariuszy",null,null,null,null,null,null,null,null,null,null,null,null,null,null,null,null,null,null,null,1]
[null,null,null,null,null,null,null,null,null,null,null,null,null,"<-",{"$f":"LEN(A71)","v":0},null,null,null,null,null,1]
["tabela : 1.2.3 Związki przyczynowo-skutkowe pomiędzy problemami interesariuszy",null,null,null,null,null,null,null,null,"• Jakie są powiązania pomiędzy wykazanymi problemami, a przedstawionym wcześniej opisem otoczenia projektu?",null,null,null,null,null,null,null,null,null,null,1]
["Proszę opisać związki przyczynowo-skutkowe pomiędzy problemami",null,null,null,null,null,null,null,null,null,null,null,null,null,null,null,null,null,null,null,1]
[null,null,null,null,null,null,null,null,null,null,null,null,null,"<-",{"$f":"LEN(A74)","v":0},null,null,null,null,null,1]
["tabela : 1.2.4 Potrzeba realizacji projektu",null,null,null,null,null,null,null,null,null,null,null,null,null,null,null,null,null,null,null,1]
["Proszę opisać, skąd wynika potrzeba realizacji projektu",null,null,null,null,null,null,null,null,"• Skąd wynika potrzeba realizacji projektu? Czy z potrzeb przedsiębiorców? Czy z potrzeb samorządu lokalnego? Czy z potrzeb lokalnych mieszkańców?\n• Od kiedy istnieje potrzeba rozwiązania sytuacji problemowej? Dlaczego do tej pory nie została zrealizowana?\n• Czy w opisie stanu aktualnego wskazane zostały wszystkie elementy otoczenia mające wpływ na konieczność realizacji projektu?\n• Czy projekt odpowiada na potrzeby interesariuszy tzn. czy potrzeba realizacji danego projektu jest zrozumiała i jasno wynika z problemów i niedogodności?",null,null,null,null,null,null,null,null,null,null,1]
[null,null,null,null,null,null,null,null,null,null,null,null,null,"<-",{"$f":"LEN(A77)","v":0},null,null,null,null,null,1]
["tabela : 1.2.5 Wybór problemów do rozwiązania przez projekt",null,null,null,null,null,null,null,null,null,null,null,null,null,null,null,null,null,null,null,1]
["Proszę opisać, które problemy zostały wybrane do rozwiązania przez projekt",null,null,null,null,null,null,null,null,"• Czy uzasadniono wybór problemów do realizacji przez projekt?\n• Które problemy wybrano do rozwiązania przez projekt (wszystkie, czy tylko część)? Jeżeli tylko część, to z czego to wynika? Których interesariuszy dotyczą wybrane problemy (wszystkich zidentyfikowanych, czy wybranych)?\n• W jaki sposób przeprowadzono selekcję problemów?\n• Czy projekt zaspokoi w pełni potrzeby inwestycyjne projektodawcy w zakresie funkcji pełnionej przez projekt? Na jaki czas? Jeżeli nie, to w jakim zakresie? Dlaczego wybrano właśnie taki zakres projektu?\n• Czy wybrano odpowiednie (kluczowe, najbardziej naglące, pierwotne) problemy do rozwiązania przez projekt?",null,null,null,null,null,null,null,null,null,null,1]
[null,null,null,null,null,null,null,null,null,null,null,null,null,"<-",{"$f":"LEN(A80)","v":0},null,null,null,null,null,1]
["sekcja : 1.3 Analiza celów projektu",null,null,null,null,null,null,null,null,null,null,null,null,null,null,null,null,null,null,null,1]
[null,null,null,null,null,null,"tabela : 1.3.1 Deﬁnicja celów projektu",null,null,"• Czy opisano związek celów projektu z potrzebami interesariuszy? Czy projekt zakłada cele wykonalne w kontekście analizy potrzeb? Czy cele są pożądane przez interesariuszy (wynikają z analizy potrzeb)?\n• Czy cele są opisem przyszłego stanu rzeczy, który zaistnieje po rozwiązaniu problemów, zgodnie z techniką SMART tzn. czy cele są konkretne, mierzalne, osiągalne, realistyczne i określone w czasie?\n• Czy projekt realizuje cele Działania FEL 2021-2027, w tym wykazuje wszystkie wskaźniki zapisane w  FEL 2021-2027 i Szczegółowym Opisie Osi Priorytetowych FEL 2021-2027 (SzOOP), które go dotyczą?",null,null,null,null,null,null,null,null,null,null,1]
["Lp.","Proszę wpisać nazwę celu",null,"Proszę wpisać, jakim wskaźnikiem cel będzie",null,"Proszę wpisać jednostkę wskaźnika",null,"Proszę wpisać wartość docelową tego wskaźnika",null,"Proszę określić moment, w którym cel zostanie osiągnięty",null,"Proszę określić źródło pomiaru wskaźnika",null,null,null,null,null,null,null,null,1]
[1,null,null,null,null,null,null,null,null,null,null,null,null,{"$f":"IF(AND(O84>=U84,P84>=U84,Q84>=U84,R84>=U84,S84>=U84,T84>=U84),\"+\",\"<-\")","v":"<-"},{"$f":"LEN(B84)","v":0},{"$f":"LEN(D84)","v":0},{"$f":"LEN(F84)","v":0},{"$f":"LEN(H84)","v":0},{"$f":"LEN(J84)","v":0},{"$f":"LEN(L84)","v":0},1]
[2,null,null,null,null,null,null,null,null,null,null,null,null,{"$f":"IF(AND(O85>=U85,P85>=U85,Q85>=U85,R85>=U85,S85>=U85,T85>=U85),\"+\",\"<-\")","v":"<-"},{"$f":"LEN(B85)","v":0},{"$f":"LEN(D85)","v":0},{"$f":"LEN(F85)","v":0},{"$f":"LEN(H85)","v":0},{"$f":"LEN(J85)","v":0},{"$f":"LEN(L85)","v":0},1]
[3,null,null,null,null,null,null,null,null,null,null,null,null,"<-",0,0,0,0,0,0,1]
[4,null,null,null,null,null,null,null,null,null,null,null,null,"<-",0,0,0,0,0,0,1]
[5,null,null,null,null,null,null,null,null,null,null,null,null,"<-",0,0,0,0,0,0,1]
[6,null,null,null,null,null,null,null,null,null,null,null,null,"<-",0,0,0,0,0,0,1]
[7,null,null,null,null,null,null,null,null,null,null,null,null,"<-",0,0,0,0,0,0,1]
[8,null,null,null,null,null,null,null,null,null,null,null,null,"<-",0,0,0,0,0,0,1]
[9,null,null,null,null,null,null,null,null,null,null,null,null,"<-",0,0,0,0,0,0,1]
[10,null,null,null,null,null,null,null,null,null,null,null,null,"<-",0,0,0,0,0,0,1]
[11,null,null,null,null,null,null,null,null,null,null,null,null,"<-",0,0,0,0,0,0,1]
[12,null,null,null,null,null,null,null,null,null,null,null,null,"<-",0,0,0,0,0,0,1]
[13,null,null,null,null,null,null,null,null,null,null,null,null,"<-",0,0,0,0,0,0,1]
[14,null,null,null,null,null,null,null,null,null,null,null,null,"<-",0,0,0,0,0,0,1]
[15,null,null,null,null,null,null,null,null,null,null,null,null,"<-",0,0,0,0,0,0,1]
[16,null,null,null,null,null,null,null,null,null,null,null,null,"<-",0,0,0,0,0,0,1]
[17,null,null,null,null,null,null,null,null,null,null,null,null,"<-",0,0,0,0,0,0,1]
[18,null,null,null,null,null,null,null,null,null,null,null,null,"<-",0,0,0,0,0,0,1]
[19,null,null,null,null,null,null,null,null,null,null,null,null,"<-",0,0,0,0,0,0,1]
[20,null,null,null,null,null,null,null,null,null,null,null,null,"<-",0,0,0,0,0,0,1]
[21,null,null,null,null,null,null,null,null,null,null,null,null,"<-",0,0,0,0,0,0,1]
[22,null,null,null,null,null,null,null,null,null,null,null,null,"<-",0,0,0,0,0,0,1]
[23,null,null,null,null,null,null,null,null,null,null,null,null,"<-",0,0,0,0,0,0,1]
[24,null,null,null,null,null,null,null,null,null,null,null,null,"<-",0,0,0,0,0,0,1]
[25,null,null,null,null,null,null,null,null,null,null,null,null,"<-",0,0,0,0,0,0,1]
[26,null,null,null,null,null,null,null,null,null,null,null,null,"<-",0,0,0,0,0,0,1]
[27,null,null,null,null,null,null,null,null,null,null,null,null,"<-",0,0,0,0,0,0,1]
[28,null,null,null,null,null,null,null,null,null,null,null,null,"<-",0,0,0,0,0,0,1]
[29,null,null,null,null,null,null,null,null,null,null,null,null,"<-",0,0,0,0,0,0,1]
[30,null,null,null,null,null,null,null,null,null,null,null,null,"<-",0,0,0,0,0,0,1]
[31,null,null,null,null,null,null,null,null,null,null,null,null,"<-",0,0,0,0,0,0,1]
[32,null,null,null,null,null,null,null,null,null,null,null,null,"<-",0,0,0,0,0,0,1]
[33,null,null,null,null,null,null,null,null,null,null,null,null,"<-",0,0,0,0,0,0,1]
[34,null,null,null,null,null,null,null,null,null,null,null,null,"<-",0,0,0,0,0,0,1]
[35,null,null,null,null,null,null,null,null,null,null,null,null,"<-",0,0,0,0,0,0,1]
[36,null,null,null,null,null,null,null,null,null,null,null,null,"<-",0,0,0,0,0,0,1]
[37,null,null,null,null,null,null,null,null,null,null,null,null,"<-",0,0,0,0,0,0,1]
[38,null,null,null,null,null,null,null,null,null,null,null,null,"<-",0,0,0,0,0,0,1]
[39,null,null,null,null,null,null,null,null,null,null,null,null,"<-",0,0,0,0,0,0,1]
[40,null,null,null,null,null,null,null,null,null,null,null,null,"<-",0,0,0,0,0,0,1]
[41,null,null,null,null,null,null,null,null,null,null,null,null,"<-",0,0,0,0,0,0,1]
[42,null,null,null,null,null,null,null,null,null,null,null,null,"<-",0,0,0,0,0,0,1]
[43,null,null,null,null,null,null,null,null,null,null,null,null,"<-",0,0,0,0,0,0,1]
[44,null,null,null,null,null,null,null,null,null,null,null,null,"<-",0,0,0,0,0,0,1]
[45,null,null,null,null,null,null,null,null,null,null,null,null,"<-",0,0,0,0,0,0,1]
[46,null,null,null,null,null,null,null,null,null,null,null,null,"<-",0,0,0,0,0,0,1]
[47,null,null,null,null,null,null,null,null,null,null,null,null,"<-",0,0,0,0,0,0,1]
[48,null,null,null,null,null,null,null,null,null,null,null,null,"<-",0,0,0,0,0,0,1]
[49,null,null,null,null,null,null,null,null,null,null,null,null,"<-",0,0,0,0,0,0,1]
[50,null,null,null,null,null,null,null,null,null,null,null,null,"<-",0,0,0,0,0,0,1]
["                                                                                                                                W celu odkrycia kolejnego wiersza ustaw kursor na ostatni wiersz tabeli i naciśnij przycik",null,null,null,null,null,null,null,null,null,null,null,null,null,null,null,null,null,null,null,1]
["Proszę opisać korzyści społeczno-gospodarczych, jakie zostaną osiągnięte dzięki realizacji celów projektu",null,null,null,null,null,null,null,null,null,null,null,null,null,null,null,null,null,null,null,1]
[null,null,null,null,null,null,null,null,null,null,null,null,null,{"$f":"IF(AND(O136>U136),\"+\",\"<-\")","v":"<-"},{"$f":"LEN(A136)","v":0},null,null,null,null,null,1]
["Proszę opisać bieżący i prognozowany popyt i uzasadnić jego wielkość",null,null,null,null,null,null,null,null,null,null,null,null,null,null,null,null,null,null,null,1]
[null,null,null,null,null,null,null,null,null,null,null,null,null,{"$f":"IF(AND(O138>U138),\"+\",\"<-\")","v":"<-"},{"$f":"LEN(A138)","v":0},null,null,null,null,null,1]
[null,null,null,null,null,null,"tabela : 1.3.2 Logika wewnętrzna celów projektu",null,null,null,"• Czy cele projektu są spójne ze sobą i logicznie z siebie wynikają?",null,null,null,null,null,null,null,null,null,1]
["Proszę opisać logikę powiązań między celami projektu",null,null,null,null,null,null,null,null,null,null,null,null,null,null,null,null,null,null,null,1]
[null,null,null,null,null,null,null,null,null,null,null,null,null,"<-",{"$f":"LEN(A141)","v":0},null,null,null,null,null,1]
[null,null,null,null,null,null,"tabela : 1.3.3 Logika zewnętrzna celów projektu",null,null,null,"• Czy opisano sposób realizacji celów FEL 2021-2027 oraz wszystkie wskaźniki realizowane przez projekt zapisane w FEL 2021-2027, które go dotyczą?",null,null,null,null,null,null,null,null,null,1]
["Lp.","Proszę wybrać wskaźnik rezultatu strategicznego dla Programu, który dotyczy danego Działania",null,null,null,null,null,null,"Proszę opisać, w jaki sposób projekt przyczyni się do realizacji wskaźnika rezultatu specyficznego",null,null,null,null,null,null,null,null,null,null,null,1]
[1,null,null,null,null,null,null,null,null,null,null,null,null,{"$f":"IF(AND(O144>U144,P144>U144),\"+\",\"<-\")","v":"<-"},{"$f":"LEN(B144)","v":0},{"$f":"LEN(I144)","v":0},null,null,null,null,1]
[2,null,null,null,null,null,null,null,null,null,null,null,null,{"$f":"IF(AND(O145>U145,P145>U145),\"+\",\"<-\")","v":"<-"},{"$f":"LEN(B145)","v":0},{"$f":"LEN(I145)","v":0},null,null,null,null,1]
[3,null,null,null,null,null,null,null,null,null,null,null,null,"<-",0,0,null,null,null,null,1]
[4,null,null,null,null,null,null,null,null,null,null,null,null,"<-",0,0,null,null,null,null,1]
[5,null,null,null,null,null,null,null,null,null,null,null,null,"<-",0,0,null,null,null,null,1]
[6,null,null,null,null,null,null,null,null,null,null,null,null,"<-",0,0,null,null,null,null,1]
[7,null,null,null,null,null,null,null,null,null,null,null,null,"<-",0,0,null,null,null,null,1]
[8,null,null,null,null,null,null,null,null,null,null,null,null,"<-",0,0,null,null,null,null,1]
[9,null,null,null,null,null,null,null,null,null,null,null,null,"<-",0,0,null,null,null,null,1]
[10,null,null,null,null,null,null,null,null,null,null,null,null,"<-",0,0,null,null,null,null,1]
[11,null,null,null,null,null,null,null,null,null,null,null,null,"<-",0,0,null,null,null,null,1]
[12,null,null,null,null,null,null,null,null,null,null,null,null,"<-",0,0,null,null,null,null,1]
[13,null,null,null,null,null,null,null,null,null,null,null,null,"<-",0,0,null,null,null,null,1]
[14,null,null,null,null,null,null,null,null,null,null,null,null,"<-",0,0,null,null,null,null,1]
[15,null,null,null,null,null,null,null,null,null,null,null,null,"<-",0,0,null,null,null,null,1]
[16,null,null,null,null,null,null,null,null,null,null,null,null,"<-",0,0,null,null,null,null,1]
[17,null,null,null,null,null,null,null,null,null,null,null,null,"<-",0,0,null,null,null,null,1]
[18,null,null,null,null,null,null,null,null,null,null,null,null,"<-",0,0,null,null,null,null,1]
[19,null,null,null,null,null,null,null,null,null,null,null,null,"<-",0,0,null,null,null,null,1]
[20,null,null,null,null,null,null,null,null,null,null,null,null,"<-",0,0,null,null,null,null,1]
[21,null,null,null,null,null,null,null,null,null,null,null,null,"<-",0,0,null,null,null,null,1]
[22,null,null,null,null,null,null,null,null,null,null,null,null,"<-",0,0,null,null,null,null,1]
[23,null,null,null,null,null,null,null,null,null,null,null,null,"<-",0,0,null,null,null,null,1]
[24,null,null,null,null,null,null,null,null,null,null,null,null,"<-",0,0,null,null,null,null,1]
[25,null,null,null,null,null,null,null,null,null,null,null,null,"<-",0,0,null,null,null,null,1]
[26,null,null,null,null,null,null,null,null,null,null,null,null,"<-",0,0,null,null,null,null,1]
[27,null,null,null,null,null,null,null,null,null,null,null,null,"<-",0,0,null,null,null,null,1]
[28,null,null,null,null,null,null,null,null,null,null,null,null,"<-",0,0,null,null,null,null,1]
[29,null,null,null,null,null,null,null,null,null,null,null,null,"<-",0,0,null,null,null,null,1]
[30,null,null,null,null,null,null,null,null,null,null,null,null,"<-",0,0,null,null,null,null,1]
[31,null,null,null,null,null,null,null,null,null,null,null,null,"<-",0,0,null,null,null,null,1]
[32,null,null,null,null,null,null,null,null,null,null,null,null,"<-",0,0,null,null,null,null,1]
[33,null,null,null,null,null,null,null,null,null,null,null,null,"<-",0,0,null,null,null,null,1]
[34,null,null,null,null,null,null,null,null,null,null,null,null,"<-",0,0,null,null,null,null,1]
[35,null,null,null,null,null,null,null,null,null,null,null,null,"<-",0,0,null,null,null,null,1]
[36,null,null,null,null,null,null,null,null,null,null,null,null,"<-",0,0,null,null,null,null,1]
[37,null,null,null,null,null,null,null,null,null,null,null,null,"<-",0,0,null,null,null,null,1]
[38,null,null,null,null,null,null,null,null,null,null,null,null,"<-",0,0,null,null,null,null,1]
[39,null,null,null,null,null,null,null,null,null,null,null,null,"<-",0,0,null,null,null,null,1]
[40,null,null,null,null,null,null,null,null,null,null,null,null,"<-",0,0,null,null,null,null,1]
[41,null,null,null,null,null,null,null,null,null,null,null,null,"<-",0,0,null,null,null,null,1]
[42,null,null,null,null,null,null,null,null,null,null,null,null,"<-",0,0,null,null,null,null,1]
[43,null,null,null,null,null,null,null,null,null,null,null,null,"<-",0,0,null,null,null,null,1]
[44,null,null,null,null,null,null,null,null,null,null,null,null,"<-",0,0,null,null,null,null,1]
[45,null,null,null,null,null,null,null,null,null,null,null,null,"<-",0,0,null,null,null,null,1]
[46,null,null,null,null,null,null,null,null,null,null,null,null,"<-",0,0,null,null,null,null,1]
[47,null,null,null,null,null,null,null,null,null,null,null,null,"<-",0,0,null,null,null,null,1]
[48,null,null,null,null,null,null,null,null,null,null,null,null,"<-",0,0,null,null,null,null,1]
[49,null,null,null,null,null,null,null,null,null,null,null,null,"<-",0,0,null,null,null,null,1]
[50,null,null,null,null,null,null,null,null,null,null,null,null,"<-",0,0,null,null,null,null,1]
["                                                                                                                                W celu odkrycia kolejnego wiersza ustaw kursor na ostatni wiersz tabeli i naciśnij przycik",null,null,null,null,null,null,null,null,null,null,null,null,null,null,null,null,null,null,null,1]
["rozdział : 2 Identyfikacja projektu",null,null,null,null,null,null,null,null,null,null,null,null,null,null,null,null,null,null,null,1]
["sekcja : 2.1 Analiza wariantów realizacji projektu / 2.1.1 Analiza wariantów strategicznych realizacji projektu",null,null,null,null,null,null,null,null,null,null,null,null,null,null,null,null,null,null,null,1]
["tabela : 2.1.1.1 Identyﬁkacja wariantów strategicznych realizacji projektu",null,null,null,null,null,null,null,null,"• W jaki sposób można rozwiązać wcześniej zidentyfikowane problemy oraz potrzeby?\n• Czy opisano sposób wyboru wariantów strategicznych do analizy i uzasadniono wybór?\n• Czy opisano możliwe do wdrożenia warianty inwestycyjne i ich wykonalność techniczną, ekonomiczną, środowiskową i instytucjonalną?\n• Czy wybrano najbardziej osiągalne pod względem technicznym, ekonomicznym, środowiskowym i instytucjonalnym warianty inwestycyjne do analizy?\n• Czy wybrane warianty zrealizują wszystkie cele projektu? W jaki sposób zrealizują one cele postawione przed projektem? Czy przedstawiono logikę dostosowania rozwiązań inwestycyjnych zastosowanych w ramach wybranych do analizy wariantów inwestycyjnych do poszczególnych celów, które ma spełniać?\n• Czy przedstawiono popyt – liczbę klientów projektodawcy lub użytkowników obiektów i urządzeń w zależności od przyjętego wariantu inwestycyjnego? Czy wybrane warianty uwzględniają ewentualne różnice w popycie?\n• Czy uda się obsłużyć określoną w podrozdziale 1.3.1 liczbę użytkowników i uzyskać zakładany poziom rezultatów, czy są jakieś ograniczenia w tym zakresie?\n• W jaki sposób można zaplanować zadania w harmonogramie, aby był on racjonalny i wykonalny?\n• Czy do realizacji wybranych zadań w wariancie wymagany jest partner (lub partnerzy), posiadający specyficzne kompetencje, bez których nie jest możliwa realizacja tych zadań?\n• Jakie są ryzyka podczas realizacji danego wariantu, w tym ryzyko związane ze skutkami zmiany klimatu i ekstremalnymi zdarzeniami pogodowymi, w tym klęskami żywiołowymi?\n• W jaki sposób zostanie zachowana trwałość rezultatów projektu (jeśli dotyczy)?",null,null,null,null,null,null,null,null,null,null,1]
["Wariant strategiczny","Proszę opisać każdy wariant strategiczny realizacji projektu w kontekście realizowania celów oraz wykonalności",null,null,null,null,null,null,null,null,null,null,null,null,null,null,null,null,null,null,1]
["Wariant 1\n",null,null,null,null,null,null,null,null,null,null,null,null,{"$f":"IF(AND(O199>U199),\"+\",\"<-\")","v":"<-"},{"$f":"LEN(B199)","v":0},null,null,null,null,null,1]
[null,null,null,null,null,null,null,null,null,null,null,null,null,null,null,null,null,null,null,null,1]
["Wariant 2\n",null,null,null,null,null,null,null,null,null,null,null,null,{"$f":"IF(AND(O201>U201),\"+\",\"<-\")","v":"<-"},{"$f":"LEN(B201)","v":0},null,null,null,null,null,1]
[null,null,null,null,null,null,null,null,null,null,null,null,null,null,null,null,null,null,null,null,1]
["Wariant 3\n",null,null,null,null,null,null,null,null,null,null,null,null,"<-",0,null,null,null,null,null,1]
[null,null,null,null,null,null,null,null,null,null,null,null,null,null,null,null,null,null,null,null,1]
[null,null,null,"tabela : 2.1.1.2 Wybór wariantu strategicznego realizacji projektu",null,null,null,null,"• Czy opisano sposób przeprowadzenia analizy wariantów strategicznych i wyboru najbardziej korzystnego wariantu?\n• Czy wybrano wariant inwestycyjny zgodnie z wynikiem przeprowadzonej analizy?\n• Czy opisano obszar geograficzny, w jakim będą prowadzone działania projektowe?\n• Czy projekt będzie realizowany na terenie województwa lubelskiego? (jeżeli dotyczy)\n• Czy przedstawiono funkcjonalność rozwiązań technicznych, technologicznych, użytkowych zaproponowanych w wybranym wariancie inwestycyjnym? (czy opis sposobu funkcjonowania rozwiązania inwestycyjnego jest jasny, przejrzysty i pełny)\n• Czy rozwiązania zastosowane w ramach wybranego wariantu inwestycyjnego realizacji projektu będą dostępne, funkcjonalne (użyteczne) dla projektodawcy / interesariuszy, w tym m.in. opisano sposób spełniania potrzeb interesariuszy przez infrastrukturę zrealizowaną w projekcie?\n• Czy opisano jakie są możliwości ulepszenia, udoskonalenia wybranego wariantu inwestycyjnego tak, aby po jakimś czasie nadal był on optymalny do zamierzonych celów? Czy rozwiązania zastosowane w ramach wybranego wariantu inwestycyjnego realizacji projektu mogą być ulepszane, udoskonalane i realizować cele projektu w całym okresie odniesienia?\n• Czy opisano innowacyjne elementy wybranego wariantu inwestycyjnego poprawiające bezpieczeństwo użytkowników, oszczędność zasobów, jakość użytkowania itp.?\n• Czy przedstawiono funkcjonalne i rzeczowe powiązania między wybranym wariantem inwestycyjnym a istniejącą infrastrukturą?\n• Czy przedstawiono opis projektów i przedsięwzięć komplementarnych z wybranym wariantem inwestycyjnym realizacji projektu (jeżeli dotyczy)?\n• Czy rozwiązania zastosowane w ramach wybranego wariantu inwestycyjnego realizacji projektu wpisują się w istniejącą infrastrukturę (są w stosunku do niej komplementarne, rozwijające i/lub tworzące synergię)?\n• Czy poprawnie opisano wpływ projektu na politykę horyzontalną UE zrównoważonego rozwoju.\n• Czy poprawnie opisano wpływ projektu na politykę horyzontalną UE promowania równości mężczyzn i kobiet oraz niedyskryminacji, w tym opisano spełnienie zasad uniwersalnego projektowania w rozumieniu Umowy Partnerstwa?\n• Czy wybrany wariant ma pozytywny lub neutralny wpływ na politykę horyzontalną UE zrównoważonego rozwoju.\n• Czy wybrany wariant ma pozytywny lub neutralny wpływ na politykę horyzontalną UE promowania równości mężczyzn i kobiet oraz niedyskryminacji, w tym zgodność z zasadami uniwersalnego projektowania w rozumieniu Umowy Partnerstwa?\n• Czy wybrany wariant jest zgodny z przepisami prawa polskiego, szczególnie w zakresie prawa budowlanego, ochrony środowiska i innych adekwatnych przepisów? Czy projektodawca posiada wszystkie niezbędne decyzje administracyjne?\n• Czy projekt jest zgodny z zasadą DNSH?\n• Czy projekt jest zgodny z regulacjami dotyczącymi pomocy publicznej/pomocy de minimis w danym Działaniu FEL 2021-2027, w tym czy wystąpi efekt zachęty (jeśli dotyczy)?\n• Czy projekt będzie realizowany na terenie województwa lubelskiego? (jeżeli dotyczy)\n• Czy przedsięwzięcia w projekcie nie są częścią projektu, który został objęty lub powinien być objęty procedurą odzyskiwania zgodnie z art. 65 Rozporządzenia 2021/1060 w następstwie przeniesienia działalności gospodarczej poza obszar objęty Programem",null,null,null,null,null,null,null,null,null,null,null,1]
["Wariant strategiczny","Proszę ocenić i uzasadnić ocenę wszystkich wariantów, kryteriami trafności merytorycznej (z pominięciem kryteriów efektywności kosztowej)",null,null,null,null,null,null,null,null,null,"Proszę podsumować punkty zdobyte przez każdy z wariantów",null,null,null,null,null,null,null,null,1]
["Wariant 1",null,null,null,null,null,null,null,null,null,null,null,null,{"$f":"IF(AND(O207>U207,P207>U207),\"+\",\"<-\")","v":"<-"},{"$f":"LEN(B207)","v":0},{"$f":"LEN(L207)","v":0},null,null,null,null,1]
[null,null,null,null,null,null,null,null,null,null,null,null,null,null,null,null,null,null,null,null,1]
["Wariant 2",null,null,null,null,null,null,null,null,null,null,null,null,{"$f":"IF(AND(O209>U209,P209>U209),\"+\",\"<-\")","v":"<-"},{"$f":"LEN(B209)","v":0},{"$f":"LEN(L209)","v":0},null,null,null,null,1]
[null,null,null,null,null,null,null,null,null,null,null,null,null,null,null,null,null,null,null,null,1]
["Wariant 3",null,null,null,null,null,null,null,null,null,null,null,null,{"$f":"IF(AND(O211>U211,P211>U211),\"+\",\"<-\")","v":"<-"},0,0,null,null,null,null,1]
[null,null,null,null,null,null,null,null,null,null,null,null,null,null,null,null,null,null,null,null,1]
["sekcja : 2.1 Analiza wariantów realizacji projektu / 2.1.2 Analiza wariantów technologicznych realizacji projektu",null,null,null,null,null,null,null,null,null,null,null,null,null,null,null,null,null,null,null,1]
["tabela : 2.1.2.1 Identyﬁkacja wariantów technologicznych realizacji projektu",null,null,null,null,null,null,null,null,"• Czy opisano sposób wyboru wariantów technologicznych do analizy i uzasadniono wybór?",null,null,null,null,null,null,null,null,null,null,1]
["Wariant technologiczny",null,"Proszę opisać każdy wariant technologiczny, w tym jego lokalizację",null,null,null,null,null,null,null,null,null,null,null,null,null,null,null,null,null,1]
["Wariant 1",null,null,null,null,null,null,null,null,null,null,null,null,{"$f":"IF(AND(O216>U216),\"+\",\"<-\")","v":"<-"},{"$f":"LEN(C216)","v":0},null,null,null,null,null,1]
["Wariant 2",null,null,null,null,null,null,null,null,null,null,null,null,"<-",{"$f":"LEN(C217)","v":0},null,null,null,null,null,1]
["Wariant 3",null,null,null,null,null,null,null,null,null,null,null,null,"<-",{"$f":"LEN(C218)","v":0},null,null,null,null,null,1]
[null,null,null,null,null,"tabela : 2.1.2.2 Wybór wariantu technologicznego realizacji projektu",null,null,null,"• Czy opisano sposób przeprowadzenia analizy wariantów strategicznych i wyboru najbardziej korzystnego wariantu?\n• Czy wybrano wariant inwestycyjny zgodnie z wynikiem przeprowadzonej analizy?",null,null,null,null,null,null,null,null,null,null,1]
["Proszę wskazać, który wariant uzyskał najniższy dynamiczny koszt jednostkowy i skąd to wynika",null,null,null,null,null,null,null,null,null,null,null,null,null,null,null,null,null,null,null,1]
[null,null,null,null,null,null,null,null,null,null,null,null,null,"<-",{"$f":"LEN(A221)","v":0},null,null,null,null,null,1]
[null,null,null,"2.1.2.2 Wybór wariantu technologicznego realizacji projektu / Efektywność kosztowa osiągania wskaźników programowych przez wybrany wariant realizacji projektu",null,null,null,null,null,"• Jaki jest poziom efektywności kosztowej osiągania wskaźników programowych produktu przez projekt?",null,null,null,null,null,null,null,null,null,null,1]
["LP",null,"Proszę wybrać wszystkie wskaźnik(i) produktu, które dotyczą Działania",null,null,null,null,"Proszę określić wartość docelową wskaźnika, która zostanie osiągnięta w projekcie",null,"Proszę wpisać przewidywaną wartość dofinansowania z EFRR dla wybranego wariantu (z części finansowej)",null,"Efektywność kosztowa tego wskaźnika wynosi:",null,null,null,null,null,null,null,null,1]
[1,null,null,null,null,null,null,null,null,null,null,null,null,{"$f":"IF(AND(O224>=U224,P224>=U224,Q224>=U224,R224>=U224),\"+\",\"<-\")","v":"<-"},{"$f":"LEN(C224)","v":0},{"$f":"LEN(H224)","v":0},{"$f":"LEN(J224)","v":0},{"$f":"LEN(L224)","v":0},null,null,1]
[2,null,null,null,null,null,null,null,null,null,null,null,null,{"$f":"IF(AND(O225>=U225,P225>=U225,Q225>=U225,R225>=U225),\"+\",\"<-\")","v":"<-"},{"$f":"LEN(C225)","v":0},{"$f":"LEN(H225)","v":0},{"$f":"LEN(J225)","v":0},{"$f":"LEN(L225)","v":0},null,null,1]
[3,null,null,null,null,null,null,null,null,null,null,null,null,"<-",0,0,0,0,null,null,1]
[4,null,null,null,null,null,null,null,null,null,null,null,null,"<-",0,0,0,0,null,null,1]
[5,null,null,null,null,null,null,null,null,null,null,null,null,"<-",0,0,0,0,null,null,1]
[6,null,null,null,null,null,null,null,null,null,null,null,null,"<-",0,0,0,0,null,null,1]
[7,null,null,null,null,null,null,null,null,null,null,null,null,"<-",0,0,0,0,null,null,1]
[8,null,null,null,null,null,null,null,null,null,null,null,null,"<-",0,0,0,0,null,null,1]
[9,null,null,null,null,null,null,null,null,null,null,null,null,"<-",0,0,0,0,null,null,1]
[10,null,null,null,null,null,null,null,null,null,null,null,null,"<-",0,0,0,0,null,null,1]
[11,null,null,null,null,null,null,null,null,null,null,null,null,"<-",0,0,0,0,null,null,1]
[12,null,null,null,null,null,null,null,null,null,null,null,null,"<-",0,0,0,0,null,null,1]
[13,null,null,null,null,null,null,null,null,null,null,null,null,"<-",0,0,0,0,null,null,1]
[14,null,null,null,null,null,null,null,null,null,null,null,null,"<-",0,0,0,0,null,null,1]
[15,null,null,null,null,null,null,null,null,null,null,null,null,"<-",0,0,0,0,null,null,1]
[16,null,null,null,null,null,null,null,null,null,null,null,null,"<-",0,0,0,0,null,null,1]
[17,null,null,null,null,null,null,null,null,null,null,null,null,"<-",0,0,0,0,null,null,1]
[18,null,null,null,null,null,null,null,null,null,null,null,null,"<-",0,0,0,0,null,null,1]
[19,null,null,null,null,null,null,null,null,null,null,null,null,"<-",0,0,0,0,null,null,1]
[20,null,null,null,null,null,null,null,null,null,null,null,null,"<-",0,0,0,0,null,null,1]
[21,null,null,null,null,null,null,null,null,null,null,null,null,"<-",0,0,0,0,null,null,1]
[22,null,null,null,null,null,null,null,null,null,null,null,null,"<-",0,0,0,0,null,null,1]
[23,null,null,null,null,null,null,null,null,null,null,null,null,"<-",0,0,0,0,null,null,1]
[24,null,null,null,null,null,null,null,null,null,null,null,null,"<-",0,0,0,0,null,null,1]
[25,null,null,null,null,null,null,null,null,null,null,null,null,"<-",0,0,0,0,null,null,1]
[26,null,null,null,null,null,null,null,null,null,null,null,null,"<-",0,0,0,0,null,null,1]
[27,null,null,null,null,null,null,null,null,null,null,null,null,"<-",0,0,0,0,null,null,1]
[28,null,null,null,null,null,null,null,null,null,null,null,null,"<-",0,0,0,0,null,null,1]
[29,null,null,null,null,null,null,null,null,null,null,null,null,"<-",0,0,0,0,null,null,1]
[30,null,null,null,null,null,null,null,null,null,null,null,null,"<-",0,0,0,0,null,null,1]
[31,null,null,null,null,null,null,null,null,null,null,null,null,"<-",0,0,0,0,null,null,1]
[32,null,null,null,null,null,null,null,null,null,null,null,null,"<-",0,0,0,0,null,null,1]
[33,null,null,null,null,null,null,null,null,null,null,null,null,"<-",0,0,0,0,null,null,1]
[34,null,null,null,null,null,null,null,null,null,null,null,null,"<-",0,0,0,0,null,null,1]
[35,null,null,null,null,null,null,null,null,null,null,null,null,"<-",0,0,0,0,null,null,1]
[36,null,null,null,null,null,null,null,null,null,null,null,null,"<-",0,0,0,0,null,null,1]
[37,null,null,null,null,null,null,null,null,null,null,null,null,"<-",0,0,0,0,null,null,1]
[38,null,null,null,null,null,null,null,null,null,null,null,null,"<-",0,0,0,0,null,null,1]
[39,null,null,null,null,null,null,null,null,null,null,null,null,"<-",0,0,0,0,null,null,1]
[40,null,null,null,null,null,null,null,null,null,null,null,null,"<-",0,0,0,0,null,null,1]
[41,null,null,null,null,null,null,null,null,null,null,null,null,"<-",0,0,0,0,null,null,1]
[42,null,null,null,null,null,null,null,null,null,null,null,null,"<-",0,0,0,0,null,null,1]
[43,null,null,null,null,null,null,null,null,null,null,null,null,"<-",0,0,0,0,null,null,1]
[44,null,null,null,null,null,null,null,null,null,null,null,null,"<-",0,0,0,0,null,null,1]
[45,null,null,null,null,null,null,null,null,null,null,null,null,"<-",0,0,0,0,null,null,1]
[46,null,null,null,null,null,null,null,null,null,null,null,null,"<-",0,0,0,0,null,null,1]
[47,null,null,null,null,null,null,null,null,null,null,null,null,"<-",0,0,0,0,null,null,1]
[48,null,null,null,null,null,null,null,null,null,null,null,null,"<-",0,0,0,0,null,null,1]
[49,null,null,null,null,null,null,null,null,null,null,null,null,"<-",0,0,0,0,null,null,1]
[50,null,null,null,null,null,null,null,null,null,null,null,null,"<-",0,0,0,0,null,null,1]
["                                                                                                                               W celu odkrycia kolejnego wiersza ustaw zaznacz ostatni wypelniony wiersz i naciśnij przycik",null,null,null,null,null,null,null,null,null,null,null,null,null,null,null,null,null,null,null,1]
[null,null,null,null,null,"tabela : 2.1.2.3 Zakres zeczowy wybranego wariantu technologicznego",null,null,null,"• Jaka jest charakterystyka wybranego wariantu technologicznego?\n• Jak prezentuje się podział przedsięwzięcia na zadania/zakresy podlegające dofinansowaniu ze środków UE (ujęte w ramach wydatków kwalifikowalnych), jak i finansowane ze środków własnych wnioskodawcy (wyszczególnione w ramach kosztów niekwalifikowalnych)?",null,null,null,null,null,null,null,null,null,null,1]
["Proszę opisać zakres rzeczowywybranego wariantu technologicznego",null,null,null,null,null,null,null,null,null,null,null,null,null,null,null,null,null,null,null,1]
[null,null,null,null,null,null,null,null,null,null,null,null,null,{"$f":"IF(AND(O277>U277),\"+\",\"<-\")","v":"<-"},{"$f":"LEN(A277)","v":0},null,null,null,null,null,1]
[null,null,null,null,null,null,null,null,null,null,null,null,null,null,null,null,null,null,null,null,1]
[4,null,null,null,null,null,null,null,null,null,null,null,null,"<-",{"$f":"LEN(C279)","v":0},null,null,null,null,null,1]
[null,null,null,null,null,null,null,null,null,null,null,null,null,"<-",0,null,null,null,null,null,1]
[5,null,null,null,null,null,null,null,null,null,null,null,null,"<-",0,null,null,null,null,null,1]
[null,null,null,null,null,null,null,null,null,null,null,null,null,"<-",0,null,null,null,null,null,1]
[6,null,null,null,null,null,null,null,null,null,null,null,null,"<-",0,null,null,null,null,null,1]
[null,null,null,null,null,null,null,null,null,null,null,null,null,"<-",0,null,null,null,null,null,1]
[7,null,null,null,null,null,null,null,null,null,null,null,null,"<-",0,null,null,null,null,null,1]
[null,null,null,null,null,null,null,null,null,null,null,null,null,"<-",0,null,null,null,null,null,1]
[8,null,null,null,null,null,null,null,null,null,null,null,null,"<-",0,null,null,null,null,null,1]
[null,null,null,null,null,null,null,null,null,null,null,null,null,"<-",0,null,null,null,null,null,1]
[9,null,null,null,null,null,null,null,null,null,null,null,null,"<-",0,null,null,null,null,null,1]
[null,null,null,null,null,null,null,null,null,null,null,null,null,"<-",0,null,null,null,null,null,1]
[10,null,null,null,null,null,null,null,null,null,null,null,null,"<-",0,null,null,null,null,null,1]
[null,null,null,null,null,null,null,null,null,null,null,null,null,"<-",0,null,null,null,null,null,1]
[null,null,null,null,null,null,"sekcja : 2.2 Potencjał do realizacji wybranego wariantu realizacji projektu",null,null,null,"• Jaka jest charakterystyka wybranego wariantu technologicznego?\n• Jak prezentuje się podział przedsięwzięcia na zadania/zakresy podlegające dofinansowaniu ze środków UE (ujęte w ramach wydatków kwalifikowalnych), jak i finansowane ze środków własnych wnioskodawcy (wyszczególnione w ramach kosztów niekwalifikowalnych)?",null,null,null,null,null,null,null,null,null,1]
["tabela : 2.2.1 Potencjał instytucjonalny do realizacji wybranego wariantu realizacji projektu",null,null,null,null,null,null,null,null,null,null,null,null,null,null,null,null,null,null,null,1]
["Proszę opisać potencjał instytucjonalny do realizacji wybranego wariantu realizacji projektu",null,null,null,null,null,null,null,null,null,null,null,null,null,null,null,null,null,null,null,1]
[null,null,null,null,null,null,null,null,null,null,null,null,null,{"$f":"IF(AND(O296>U296),\"+\",\"<-\")","v":"<-"},{"$f":"LEN(A296)","v":0},null,null,null,null,null,1]
["tabela : 2.2.2 Potencjał kadrowy do realizacji wybranego wariantu realizacji projektu",null,null,null,null,null,null,null,null,null,null,null,null,null,null,null,null,null,null,null,1]
["Proszę opisać zespół kadrowy niezbędny do realizacji wybranego wariantu",null,null,null,null,null,null,null,null,null,null,null,null,null,null,null,null,null,null,null,1]
[null,null,null,null,null,null,null,null,null,null,null,null,null,{"$f":"IF(AND(O299>U299),\"+\",\"<-\")","v":"<-"},{"$f":"LEN(A299)","v":0},null,null,null,null,null,1]
["tabela : 2.2.3 Potencjał ﬁnansowy niezbędny do realizacji wybranego wariantu realizacji projektu",null,null,null,null,null,null,null,null,null,null,null,null,null,null,null,null,null,null,null,1]
["Proszę opisać potencjał finansowy niezbędny do realizacji wybranego wariantu realizacji projektu",null,null,null,null,null,null,null,null,null,null,null,null,null,null,null,null,null,null,null,1]
[null,null,null,null,null,null,null,null,null,null,null,null,null,"<-",{"$f":"LEN(A302)","v":0},null,null,null,null,null,1]
["tabela : 2.2.4 Potencjał techniczny do realizacji wybranego wariantu realizacji projektu",null,null,null,null,null,null,null,null,null,null,null,null,null,null,null,null,null,null,null,1]
["Proszę opisać potencjał techniczny niezbędny do realizacji wybranego wariantu realizacji projektu",null,null,null,null,null,null,null,null,null,null,null,null,null,null,null,null,null,null,null,1]
[null,null,null,null,null,null,null,null,null,null,null,null,null,"<-",{"$f":"LEN(A305)","v":0},null,null,null,null,null,1]
["tabela : 2.2.5 Potencjał środowiskowy do realizacji wybranego wariantu realizacji projektu",null,null,null,null,null,null,null,null,null,null,null,null,null,null,null,null,null,null,null,1]
["Wyszczególnienie",null,null,null,"Opis",null,null,null,null,null,null,null,null,null,null,null,null,null,null,null,1]
["Proszę opisać oddziaływanie na środowisko wybranego wariantu",null,null,null,null,null,null,null,null,null,null,null,null,{"$f":"IF(AND(O308>U308),\"+\",\"<-\")","v":"<-"},{"$f":"LEN(E308)","v":0},null,null,null,null,null,1]
["Proszę opisać przystosowanie się do zmian klimatu i łagodzenie zmian klimatu, a także odporność na klęski żywiołowe",null,null,null,null,null,null,null,null,null,null,null,null,{"$f":"IF(AND(O309>U309),\"+\",\"<-\")","v":"<-"},{"$f":"LEN(E309)","v":0},null,null,null,null,null,1]
["Proszę opisać wpływ wybranego wariantu na siedliska i gatunki zamieszkujące tereny Natura 2000 i inne o znaczeniu krajowym",null,null,null,null,null,null,null,null,null,null,null,null,"<-",{"$f":"LEN(E310)","v":0},null,null,null,null,null,1]
["Proszę opisać wpływ wybranego wariantu na efektywne i racjonalne wykorzystywanie zasobów naturalnych oraz stosowanie rozwiązań przyjaznych środowisku",null,null,null,null,null,null,null,null,null,null,null,null,"<-",{"$f":"LEN(E311)","v":0},null,null,null,null,null,1]
["Zgodność wybranego wariantu DNSH",null,null,null,null,null,null,null,null,null,null,null,null,{"$f":"IF(AND(O312>U312),\"+\",\"<-\")","v":"<-"},{"$f":"LEN(E312)","v":0},null,null,null,null,null,1]
["rozdział : 3 Test pomocy publicznej"]
[null,null,null,null,null,null,"tabela :  Analiza wystepowania pomocy publicznej w projekcie",null,null,"• Czy właściwie określono zakres działalności gospodarczej w projekcie zgodnie z unijnym prawem konkurencji?\nCzy poprawnie przeprowadzono analizę projektu pod kątem wystąpienia pomocy państwa?\n• Czy projekt jest zgodny z regulacjami dotyczącymi pomocy publicznej w danym Działaniu FEL 2021-2027?\"    ",null,null,null,null,null,null,null,null,null,null,1]
["Pomoc de minimis oraz pomoc publiczna     ",null,null,null,"Proszę wskazać, czy warunek jest spełniony",null,"Proszę uzasadnić odpowiedź ",null,null,"Proszę wskazać regulacje dotyczącej pomocy publicznej w oparciu o które dokonano analizy",null,null,null,null,null,null,null,null,null,null,1]
["Czy w projekcie występuje pomoc publiczna? (jeżeli tak, w jakim zakresie?)",null,null,null,null,null,null,null,null,null,null,null,null,{"$f":"IF(AND(O316>U316,P316>U316,Q316>U316),\"+\",\"<-\")","v":"<-"},{"$f":"LEN(E316)","v":0},{"$f":"LEN(G316)","v":0},{"$f":"LEN(J316)","v":0},null,null,null,1]
["Czy w projekcie występuje transfer zasobów publicznych?",null,null,null,null,null,null,null,null,null,null,null,null,"<-",{"$f":"LEN(E317)","v":0},{"$f":"LEN(G317)","v":0},{"$f":"LEN(J317)","v":0},null,null,null,1]
["Czy transfer zasobów publicznych jest selektywny – uprzywilejowuje określony podmiot lub wytwarzanie określonych dóbr?",null,null,null,null,null,null,null,null,null,null,null,null,"<-",0,0,0,null,null,null,1]
["Czy transfer zasobów publicznych skutkuje przysporzeniem (korzyścią ekonomiczną) na rzecz określonego podmiotu, na warunkach korzystniejszych niż rynkowe?",null,null,null,null,null,null,null,null,null,null,null,null,"<-",0,0,0,null,null,null,1]
["Czy w efekcie transferu zasobów publicznych występuje lub może wystąpić zakłócenie konkurencji?",null,null,null,null,null,null,null,null,null,null,null,null,"<-",0,0,0,null,null,null,1]
["Czy w projekcie występuje pomoc de mimimis?",null,null,null,null,null,null,null,null,null,null,null,null,{"$f":"IF(AND(O321>U321,P321>U321,Q321>U321),\"+\",\"<-\")","v":"<-"},0,0,0,null,null,null,1]
["rozdział :  4 Analiza ryzyka"]
["sekcja : 4.1 Analiza wrażliwości"]
[null,null,null,"tabela : Analiza wrażliwości dla projektu – ocena parametrów krytycznych",null,null,null,null,null,"• Które parametry inwestycji można uznać za krytyczne? W jakim stopniu oddziałują one na efektywność finansową i ekonomiczną inwestycji?\n• Jakie zmiany procentowe parametrów zrównałyby FNPV/C lub ENPV do zera?\n• Jakie zmiany procentowe parametrów spowodowałby utratę trwałości finansowej przez projekt?"]
["Zmiana parametru o 1%",null,null,"Zmiana NPV/C [%] ",null,"Zmiana ENPV [%] ",null,null,"Komentarz"]
["Wzrost kosztów inwestycyjnych w fazie inwestycyjnej",null,null,null,null,null,null,null,null,null,null,null,null,{"$f":"IF(AND(O326>=U326,P326>=U326,Q326>=U326),\"+\",\"<-\")","v":"<-"},{"$f":"LEN(D326)","v":0},{"$f":"LEN(F326)","v":0},{"$f":"LEN(H326)","v":0},null,null,null,1]
["Spadek popytu na usługi oferowane w wyniku realizacji projektu",null,null,null,null,null,null,null,null,null,null,null,null,{"$f":"IF(AND(O327>=U327,P327>=U327,Q327>=U327),\"+\",\"<-\")","v":"<-"},{"$f":"LEN(D327)","v":0},{"$f":"LEN(F327)","v":0},{"$f":"LEN(H327)","v":0},null,null,null,1]
["Spadek taryf na usługi oferowane w wyniku realizacji projektu",null,null,null,null,null,null,null,null,null,null,null,null,"<-",0,0,0,null,null,null,1]
["Wzrost kosztów operacyjnych (bez amortyzacji) w fazie operacyjnej (po realizacji projektu)",null,null,null,null,null,null,null,null,null,null,null,null,"<-",0,0,0,null,null,null,1]
["tabela : Analiza wrażliwości dla projektu – zmiany parametrów powodujące krytyczne zmiany osiągnięć [%]"]
["Parametr","NPV/C = 0 [%] ",null,"ENPV = 0 [%] ",null,"projekt nie ma trwałości  [%] ",null,null,"projektodawca nie ma trwałości [%] ",null,"Komentarz"]
["Wzrost kosztów inwestycyjnych w fazie inwestycyjnej",null,null,null,null,null,null,null,null,null,null,null,null,{"$f":"IF(AND(O332>=U332,P332>=U332,Q332>=U332,K332>=U332),\"+\",\"<-\")","v":"<-"},{"$f":"LEN(B332)","v":0},{"$f":"LEN(D332)","v":0},{"$f":"LEN(F332)","v":0},{"$f":"LEN(I332)","v":0},{"$f":"LEN(K332)","v":0},null,1]
["Spadek popytu na usługi oferowane w wyniku realizacji projektu",null,null,null,null,null,null,null,null,null,null,null,null,{"$f":"IF(AND(O333>U333,P333>U333,Q333>U333),\"+\",\"<-\")","v":"<-"},{"$f":"LEN(B333)","v":0},{"$f":"LEN(D333)","v":0},{"$f":"LEN(F333)","v":0},{"$f":"LEN(I333)","v":0},{"$f":"LEN(K333)","v":0},null,1]
["Spadek taryf na usługi oferowane w wyniku realizacji projektu",null,null,null,null,null,null,null,null,null,null,null,null,"<-",0,0,0,0,0,null,1]
["Wzrost kosztów operacyjnych (bez amortyzacji) w fazie operacyjnej (po\nrealizacji projektu)",null,null,null,null,null,null,null,null,null,null,null,null,"<-",0,0,0,0,0,null,1]
["sekcja : 4.2 Ilościowa analiza ryzyka"]
[null,null,null,"tabela : Analiza ilościowa ryzyka projektu w podziale na rodzaje ryzyka",null,null,null,null,null,null,"• Czy dla wybranego wariantu inwestycyjnego przedstawiono czynniki mogące wpłynąć na opóźnienie realizacji tego wariantu (czynniki ryzyka) i sposoby redukcji tych zagrożeń?\n• Czy czynniki ryzyka – opóźnienia lub utrudnienia realizacji rozwiązań zastosowanych w ramach wybranego wariantu inwestycyjnego realizacji projektu – są nieistotne lub prawdopodobieństwo ich negatywnego wpływu na projekt zostało zminimalizowane?"]
["Lp.","Rodzaj ryzyka",null,null,null,"Przyczyny",null,"Skutki",null,"Znaczenie",null,"Środki zapobiegawcze"]
[1,null,null,null,null,null,null,null,null,null,null,null,null,{"$f":"IF(AND(O339>T339,P339>T339,Q339>T339,R339>T339,S339>T339),\"+\",\"<-\")","v":"<-"},{"$f":"LEN(B339)","v":0},{"$f":"LEN(F339)","v":0},{"$f":"LEN(H339)","v":0},{"$f":"LEN(J339)","v":0},{"$f":"LEN(L339)","v":0},null,1]
[2,null,null,null,null,null,null,null,null,null,null,null,null,"<-",{"$f":"LEN(B340)","v":0},{"$f":"LEN(F340)","v":0},{"$f":"LEN(H340)","v":0},{"$f":"LEN(J340)","v":0},{"$f":"LEN(L340)","v":0}]
[3,null,null,null,null,null,null,null,null,null,null,null,null,"<-",0,0,0,0,0]
[4,null,null,null,null,null,null,null,null,null,null,null,null,"<-",0,0,0,0,0]
[5,null,null,null,null,null,null,null,null,null,null,null,null,"<-",0,0,0,0,0]
[6,null,null,null,null,null,null,null,null,null,null,null,null,"<-",0,0,0,0,0]
[7,null,null,null,null,null,null,null,null,null,null,null,null,"<-",0,0,0,0,0]
[8,null,null,null,null,null,null,null,null,null,null,null,null,"<-",0,0,0,0,0]
[9,null,null,null,null,null,null,null,null,null,null,null,null,"<-",0,0,0,0,0]
[10,null,null,null,null,null,null,null,null,null,null,null,null,"<-",0,0,0,0,0]
[11,null,null,null,null,null,null,null,null,null,null,null,null,"<-",0,0,0,0,0]
[12,null,null,null,null,null,null,null,null,null,null,null,null,"<-",0,0,0,0,0]
[13,null,null,null,null,null,null,null,null,null,null,null,null,"<-",0,0,0,0,0]
[14,null,null,null,null,null,null,null,null,null,null,null,null,"<-",0,0,0,0,0]
[15,null,null,null,null,null,null,null,null,null,null,null,null,"<-",0,0,0,0,0]
[16,null,null,null,null,null,null,null,null,null,null,null,null,"<-",0,0,0,0,0]
[17,null,null,null,null,null,null,null,null,null,null,null,null,"<-",0,0,0,0,0]
[18,null,null,null,null,null,null,null,null,null,null,null,null,"<-",0,0,0,0,0]
[19,null,null,null,null,null,null,null,null,null,null,null,null,"<-",0,0,0,0,0]
[20,null,null,null,null,null,null,null,null,null,null,null,null,"<-",0,0,0,0,0]
[21,null,null,null,null,null,null,null,null,null,null,null,null,"<-",0,0,0,0,0]
[22,null,null,null,null,null,null,null,null,null,null,null,null,"<-",0,0,0,0,0]
[23,null,null,null,null,null,null,null,null,null,null,null,null,"<-",0,0,0,0,0]
[24,null,null,null,null,null,null,null,null,null,null,null,null,"<-",0,0,0,0,0]
[25,null,null,null,null,null,null,null,null,null,null,null,null,"<-",0,0,0,0,0]
[26,null,null,null,null,null,null,null,null,null,null,null,null,"<-",0,0,0,0,0]
[27,null,null,null,null,null,null,null,null,null,null,null,null,"<-",0,0,0,0,0]
[28,null,null,null,null,null,null,null,null,null,null,null,null,"<-",0,0,0,0,0]
[29,null,null,null,null,null,null,null,null,null,null,null,null,"<-",0,0,0,0,0]
[30,null,null,null,null,null,null,null,null,null,null,null,null,"<-",0,0,0,0,0]
[31,null,null,null,null,null,null,null,null,null,null,null,null,"<-",0,0,0,0,0]
[32,null,null,null,null,null,null,null,null,null,null,null,null,"<-",0,0,0,0,0]
[33,null,null,null,null,null,null,null,null,null,null,null,null,"<-",0,0,0,0,0]
[34,null,null,null,null,null,null,null,null,null,null,null,null,"<-",0,0,0,0,0]
[35,null,null,null,null,null,null,null,null,null,null,null,null,"<-",0,0,0,0,0]
[36,null,null,null,null,null,null,null,null,null,null,null,null,"<-",0,0,0,0,0]
[37,null,null,null,null,null,null,null,null,null,null,null,null,"<-",0,0,0,0,0]
[38,null,null,null,null,null,null,null,null,null,null,null,null,"<-",0,0,0,0,0]
[39,null,null,null,null,null,null,null,null,null,null,null,null,"<-",0,0,0,0,0]
[40,null,null,null,null,null,null,null,null,null,null,null,null,"<-",0,0,0,0,0]
[41,null,null,null,null,null,null,null,null,null,null,null,null,"<-",0,0,0,0,0]
[42,null,null,null,null,null,null,null,null,null,null,null,null,"<-",0,0,0,0,0]
[43,null,null,null,null,null,null,null,null,null,null,null,null,"<-",0,0,0,0,0]
[44,null,null,null,null,null,null,null,null,null,null,null,null,"<-",0,0,0,0,0]
[45,null,null,null,null,null,null,null,null,null,null,null,null,"<-",0,0,0,0,0]
[46,null,null,null,null,null,null,null,null,null,null,null,null,"<-",0,0,0,0,0]
[47,null,null,null,null,null,null,null,null,null,null,null,null,"<-",0,0,0,0,0]
[48,null,null,null,null,null,null,null,null,null,null,null,null,"<-",0,0,0,0,0]
[49,null,null,null,null,null,null,null,null,null,null,null,null,"<-",0,0,0,0,0]
[50,null,null,null,null,null,null,null,null,null,null,null,null,"<-",0,0,0,0,0]
["                                                                                                                               W celu odkrycia kolejnego wiersza ustaw zaznacz ostatni wypelniony wiersz i naciśnij przycik"]

{"sheet":"ws_pro","index":1,"n_rows":4,"n_cols":1,"rows_kept":4,"cut":false,"hidden":true,"merged":[]}
["7.6 Liczba wspartych obiektów, w których realizowane są usługi społeczne"]
["7.6 Pojemność nowych lub zmodernizowanych lokali socjalnych"]
["7.6 Liczba obiektów dostosowanych do potrzeb osób z niepełnosprawnościami (EFRR/FST/FS)"]
["7.6 Liczba projektów, w których sfinansowano koszty racjonalnych usprawnień dla osób z niepełnosprawnościami (EFRR/FS/FST)"]

{"sheet":"ws_rez","index":2,"n_rows":2,"n_cols":1,"rows_kept":2,"cut":false,"hidden":true,"merged":[]}
["7.6 Roczna liczba użytkowników nowych lub zmodernizowanych lokali socjalnych"]
["7.6 Roczna liczba użytkowników nowych lub zmodernizowanych podmiotów realizujących usługi społeczne"]

{"sheet":"ryzyka","index":3,"n_rows":9,"n_cols":1,"rows_kept":9,"cut":false,"hidden":true,"merged":[]}
["Ryzyko związane z popytem"]
["Ryzyko projektowe"]
["Ryzyko związane z nabyciem gruntów"]
["Ryzyko administracyjne i ryzyko związane z udzielaniem zamówień"]
["Ryzyko związane z budową"]
["Ryzyko operacyjne"]
["Ryzyko finansowe"]
["Ryzyko regulacyjne"]
["Inne rodzaje ryzyka"]